bitfinex/quotes_ETHUSD_20240716
["timestamp","ask_amount","ask_price","bid_price","bid_amount"]
[1721161388063,6.95994822,3472.5,3472.4,0.55]
[1721161388285,7.2600819,3472.5,3472.4,0.55]
[1721161388488,8.33164469,3472.5,3472.4,0.55]
[1721161388717,6.83108279,3472.5,3472.4,0.55]
[1721161388998,8.33164469,3472.5,3472.4,0.55]
[1721161389224,6.83108279,3472.5,3472.4,0.55]
[1721161390570,2.88045,3471.7,3471.5,2.4069]
[1721161391503,4.08221164,3471.7,3471.5,2.4069]
[1721161391706,2.88051,3471.6,3471.5,2.4069]
[1721161391914,2.88051,3471.6,3471.5,2.9569]
[1721161392329,4.08227164,3471.6,3471.5,2.9569]
[1721161393319,4.08227164,3471.6,3471.5,0.55]
[1721161393617,2.88061,3471.5,3471.2,0.55]
[1721161394030,4.08237164,3471.5,3471.2,0.55]
[1721161394328,1.20176164,3471.3,3471.2,0.55]
[1721161394535,4.08246164,3471.4,3471.2,0.55]
[1721161394833,1.20176164,3471.3,3471.2,0.55]
[1721161395295,4.38474352,3471.3,3471.2,0.55]
[1721161395620,2.88076,3471.3,3471.2,0.55]
[1721161396515,1.20275365,3471.5,3471.2,0.55]
[1721161396814,1.20275365,3471.9,3471.2,0.85348]
[1721161397004,1.20275365,3471.9,3471.3,2.351]
[1721161397201,1.50398352,3472.0,3471.4,3.751078]
[1721161397202,1.20275365,3472.0,3471.4,3.751078]
[1721161397900,1.20275365,3471.9,3471.4,3.751078]
[1721161398384,1.20275365,3472.0,3471.5,5.23329]
[1721161398690,1.20275365,3472.3,3471.9,2.88026]
[1721161398893,2.87975,3472.6,3472.0,0.55]
[1721161398894,1.20275365,3472.4,3472.0,0.55]
[1721161399081,1.20275365,3472.5,3472.0,1.416336]
[1721161399412,1.20275365,3472.4,3472.0,1.416336]
[1721161399723,2.87995,3472.3,3472.0,0.55]
[1721161399923,1.20275365,3472.3,3471.8,0.55]
[1721161400338,1.20275365,3472.4,3471.8,0.55]
[1721161400542,4.08263365,3472.4,3471.8,0.55]
[1721161401480,2.87994,3472.3,3471.8,0.55]
[1721161401685,4.08269365,3472.3,3471.8,1.416365]
[1721161403620,4.08269365,3472.3,3471.8,0.55]
[1721161403920,2.88002,3472.2,3471.8,0.55]
[1721161404522,1.20275365,3472.3,3471.8,0.55]
[1721161404891,4.08269365,3472.3,3471.8,0.55]
[1721161405219,2.87994,3472.3,3471.8,0.55]
[1721161405409,2.87994,3472.3,3471.8,1.416374]
[1721161405612,4.08269365,3472.3,3471.8,1.416374]
[1721161405801,1.20275365,3472.3,3471.8,1.416374]
[1721161405997,1.20275365,3472.5,3471.8,4.35426454]
[1721161406227,4.08253365,3472.5,3471.8,4.296664]
[1721161406430,1.20275365,3472.4,3471.9,1.1972864]
[1721161406724,1.20275365,3472.4,3472.0,0.55]
[1721161407094,1.20275365,3472.5,3472.2,2.87999]
[1721161407293,1.50546917,3472.6,3472.3,0.55]
[1721161407294,1.20275365,3472.6,3472.3,0.55]
[1721161407513,1.20275365,3472.7,3472.3,0.55]
[1721161407900,1.20275365,3472.8,3472.2,0.55]
[1721161408237,1.20275365,3472.8,3472.2,1.49004864]
[1721161408732,1.20275365,3472.9,3472.2,1.49004864]
[1721161408929,1.20275365,3472.9,3472.3,0.05759423]
[1721161409135,1.20275365,3473.0,3472.5,2.2884]
[1721161409345,1.20275365,3473.0,3472.6,0.55]
[1721161409636,3.0,3473.4,3472.6,3.48726791]
[1721161409637,1.20275365,3473.3,3472.6,3.48726791]
[1721161409818,1.20275365,3473.4,3472.6,3.42968]
[1721161410018,1.20275365,3473.2,3472.6,4.57705749]
[1721161410394,1.50512237,3473.4,3472.6,4.57705749]
[1721161410395,1.20275365,3473.3,3472.6,4.57705749]
[1721161411529,1.20275365,3473.3,3472.6,4.63464404]
[1721161411928,1.20275365,3473.3,3472.6,4.57705749]
[1721161412130,1.20275365,3473.4,3472.6,4.57705749]
[1721161412310,1.20275365,3473.4,3472.7,1.26211524]
[1721161412635,1.20275365,3473.4,3472.8,0.55]
[1721161414109,1.20275365,3473.5,3472.8,0.55]
[1721161414304,1.20275365,3473.4,3472.8,0.55]
[1721161414615,1.20275365,3473.5,3472.8,0.55]
[1721161414822,1.20275365,3473.4,3472.8,0.55]
[1721161415022,1.20275365,3473.4,3472.5,2.72124486]
[1721161415023,1.20275365,3473.3,3472.6,0.55]
[1721161415220,1.20275365,3473.4,3472.6,0.55]
[1721161415427,1.20275365,3473.3,3472.6,0.55]
[1721161416233,1.20275365,3473.4,3472.6,0.55]
[1721161417241,0.27060243,3473.3,3472.6,0.55]
[1721161417538,1.47335608,3473.3,3472.6,0.55]
[1721161417701,1.20275365,3473.4,3472.6,0.55]
[1721161418521,1.20275365,3473.3,3472.6,0.55]
[1721161419564,1.20275365,3473.1,3472.6,0.55]
[1721161419736,0.27053437,3473.0,3472.6,0.55]
[1721161420061,1.20275365,3473.0,3472.6,0.55]
[1721161420872,1.20275365,3472.9,3472.6,0.55]
[1721161421026,2.87957,3472.8,3472.6,0.55]
[1721161421962,4.08232365,3472.8,3472.6,0.55]
[1721161422519,1.20275365,3472.8,3472.6,0.55]
[1721161422717,1.76113418,3472.8,3472.6,0.55]
[1721161424462,0.55838053,3472.8,3472.6,0.55]
[1721161424658,4.08225365,3472.9,3472.6,0.55]
[1721161425067,1.20275365,3472.9,3472.6,0.55]
[1721161425272,1.20275365,3472.8,3472.6,0.55]
[1721161425766,1.20275365,3472.7,3472.6,0.55]
[1721161425968,1.47315588,3472.7,3472.6,0.55]
[1721161427388,6.02960223,3472.7,3472.6,0.55]
[1721161427541,7.26046862,3472.7,3472.6,0.55]
[1721161427742,5.7592,3472.7,3472.6,0.55]
[1721161427974,7.2607477,3472.7,3472.6,0.55]
[1721161428548,5.7592,3472.7,3472.6,0.55]
[1721161428886,6.80321223,3472.7,3472.6,0.55]
[1721161429238,8.3047602,3472.7,3472.6,0.55]
[1721161429871,6.80321223,3472.7,3472.6,0.55]
[1721161430083,8.3047602,3472.7,3472.6,0.55]
[1721161432088,8.30501007,3472.7,3472.6,0.55]
[1721161432285,6.80321223,3472.7,3472.6,0.55]
[1721161432592,8.30500711,3472.7,3472.6,0.55]
[1721161432748,2.88001,3472.2,3471.9,7.37]
[1721161433086,2.88023,3472.0,3471.7,2.3596]
[1721161433377,2.88023,3472.0,3471.8,0.55]
[1721161435976,2.88026,3471.9,3471.8,0.55]
[1721161436186,2.88049,3471.7,3471.2,9.7932]
[1721161436421,2.88049,3471.7,3471.2,2.4232]
[1721161436723,2.88061,3471.5,3471.2,2.4232]
[1721161438199,2.88061,3471.5,3471.3,0.55]
[1721161438406,2.88068,3471.4,3471.3,0.55]
[1721161439241,2.88045,3471.7,3471.3,0.55]
[1721161439402,2.88053,3471.6,3471.3,0.55]
[1721161443302,4.08167968,3471.6,3471.3,0.55]
[1721161443834,2.88053,3471.6,3471.3,0.55]
[1721161444010,4.08167968,3471.6,3471.3,0.55]
[1721161444200,2.88053,3471.6,3471.3,0.55]
[1721161446211,1.20114968,3471.8,3471.3,0.55]
[1721161446438,0.27016521,3471.7,3471.3,0.55]
[1721161446646,0.27016521,3471.7,3471.0,0.55]
[1721161446941,1.20114968,3471.9,3471.0,0.55]
[1721161448139,1.20114968,3471.8,3471.0,0.55]
[1721161448361,1.20114968,3471.9,3471.0,0.55]
[1721161450270,1.20114968,3472.0,3471.0,0.55]
[1721161450569,1.71423718,3472.0,3471.0,0.55]
[1721161453198,1.20114968,3471.9,3471.0,0.55]
[1721161454189,1.71423718,3472.0,3471.0,0.55]
[1721161454869,1.20114968,3471.9,3471.0,0.55]
[1721161456189,1.71423718,3472.0,3471.0,0.55]
[1721161456388,1.49851456,3472.1,3471.0,0.55]
[1721161456389,1.76538485,3471.9,3471.0,0.55]
[1721161456556,0.56423517,3471.9,3471.0,0.55]
[1721161456760,1.76538485,3471.9,3471.0,0.55]
[1721161458273,1.76538485,3471.9,3471.1,1.018]
[1721161458573,1.52750567,3471.8,3471.2,0.55]
[1721161459176,1.20114968,3471.8,3471.3,2.2653]
[1721161459378,1.20114968,3471.8,3471.4,0.55]
[1721161459984,1.20114968,3471.8,3471.2,0.55]
[1721161460384,1.20114968,3471.7,3471.2,0.55]
[1721161460691,1.20114968,3471.8,3471.2,0.55]
[1721161461261,1.49840945,3471.9,3471.2,0.55]
[1721161461262,1.20114968,3471.7,3471.2,0.55]
[1721161461662,1.20114968,3471.8,3471.2,0.55]
[1721161461898,1.20114968,3471.7,3471.2,0.55]
[1721161462082,1.20114968,3471.8,3471.2,0.55]
[1721161462256,1.49840945,3471.9,3471.2,0.55]
[1721161462257,1.20114968,3471.7,3471.2,0.55]
[1721161463313,1.20114968,3471.8,3471.2,0.55]
[1721161463622,1.20114968,3471.7,3471.2,0.55]
[1721161463999,1.20114968,3471.7,3471.2,0.93333]
[1721161464174,1.20114968,3471.7,3471.2,0.55]
[1721161464380,1.20114968,3471.6,3471.2,0.55]
[1721161464870,1.20114968,3471.7,3471.2,0.55]
[1721161465476,1.20114968,3471.6,3471.2,0.55]
[1721161465858,1.20114968,3471.7,3471.2,0.55]
[1721161466265,1.20114968,3471.6,3471.2,0.55]
[1721161467590,1.20114968,3471.8,3471.5,2.3687]
[1721161467791,1.50002261,3471.9,3471.5,2.3687]
[1721161467792,1.20114968,3471.9,3471.6,0.55]
[1721161468492,1.20114968,3471.9,3471.6,1.568]
[1721161468920,3.0,3472.5,3471.8,1.018]
[1721161468921,1.20114968,3472.0,3471.8,1.018]
[1721161469091,1.20114968,3472.4,3472.0,2.3776]
[1721161469292,1.20114968,3472.5,3472.3,1.018]
[1721161469704,1.20114968,3472.5,3472.4,0.55]
[1721161470727,1.5015224,3472.6,3472.4,0.55]
[1721161471424,1.5015224,3472.5,3472.2,0.55]
[1721161471630,1.20143575,3472.3,3472.2,0.55]
[1721161471790,1.20143575,3472.3,3472.1,0.55]
[1721161473726,1.20143575,3472.3,3472.1,1.568]
[1721161473895,1.20143575,3472.4,3472.1,1.568]
[1721161474090,1.20143575,3472.5,3472.1,1.568]
[1721161475741,3.0,3473.1,3472.1,1.568]
[1721161475742,1.20143575,3472.4,3472.1,1.568]
[1721161476218,1.20143575,3472.5,3472.1,1.568]
[1721161477038,1.20143575,3472.4,3472.1,1.568]
[1721161477547,1.20143575,3472.4,3472.1,0.55]
[1721161477780,1.20143575,3472.3,3472.1,0.55]
[1721161478048,1.20143575,3472.4,3472.1,0.55]
[1721161478720,1.20143575,3472.5,3472.1,1.568]
[1721161478904,1.20143575,3472.5,3472.1,1.96256]
[1721161480119,1.20143575,3472.6,3472.3,1.018]
[1721161480320,1.20143575,3472.6,3472.4,0.55]
[1721161480720,1.20143575,3472.7,3472.4,0.55]
[1721161483446,1.20143575,3472.8,3472.4,0.55]
[1721161483616,1.20143575,3472.7,3472.2,0.55]
[1721161484620,1.20143575,3472.7,3472.2,0.984016]
[1721161484818,1.20143575,3472.8,3472.4,2.3722]
[1721161485023,1.20143575,3472.9,3472.5,1.568]
[1721161485462,1.20143575,3473.0,3472.5,1.568]
[1721161486111,1.20143575,3472.9,3472.5,0.55]
[1721161486757,1.47165765,3472.9,3472.5,0.55]
[1721161487054,1.20143575,3472.8,3472.5,0.55]
[1721161489559,1.20143575,3472.9,3472.5,0.55]
[1721161489741,1.20143575,3472.8,3472.5,0.55]
[1721161490834,1.20143575,3472.9,3472.5,0.55]
[1721161491044,1.20143575,3472.8,3472.5,0.55]
[1721161491226,1.49924301,3472.7,3472.0,2.4157]
[1721161491423,1.19918818,3472.5,3472.0,2.4157]
[1721161491831,1.19918818,3472.5,3472.0,2.356637]
[1721161492638,1.19918818,3472.5,3472.1,0.55]
[1721161493549,1.46901091,3472.5,3472.1,0.55]
[1721161495235,1.19918818,3472.3,3472.1,0.55]
[1721161496975,1.49908995,3472.3,3472.1,0.55]
[1721161497278,1.19969781,3472.2,3471.8,0.55]
[1721161497495,1.19969781,3472.1,3471.8,0.55]
[1721161497787,1.19969781,3471.9,3471.4,2.4928]
[1721161497991,1.46957659,3471.9,3471.4,2.4928]
[1721161498151,1.19969781,3471.8,3471.4,2.4928]
[1721161499092,2.88045,3471.7,3471.4,2.4928]
[1721161499300,2.88053,3471.6,3471.4,2.4928]
[1721161499896,2.88053,3471.6,3471.5,0.55]
[1721161500086,6.45715778,3471.6,3471.5,0.55]
[1721161500285,2.88085,3471.2,3471.0,2.4299]
[1721161500612,2.88085,3471.2,3470.7,7.37]
[1721161500613,4.08023991,3471.2,3470.7,9.7999]
[1721161500814,2.88085,3471.2,3470.7,2.4299]
[1721161501177,4.08023991,3471.2,3470.7,2.4299]
[1721161501514,2.88085,3471.2,3470.7,2.4299]
[1721161501901,2.88085,3471.2,3470.8,0.55]
[1721161502914,2.88093,3471.1,3470.1,2.394]
[1721161503215,1.19938991,3471.0,3470.1,2.394]
[1721161505059,1.19938991,3471.0,3470.2,0.55]
[1721161505412,1.19938991,3471.2,3470.4,2.3644]
[1721161505699,1.19938991,3471.6,3470.6,2.3644]
[1721161505906,1.49791741,3471.7,3470.7,0.55]
[1721161505907,1.19938991,3471.7,3470.7,0.55]
[1721161506084,1.19938991,3471.6,3470.7,1.373681]
[1721161506812,1.19938991,3471.5,3470.7,1.373681]
[1721161507378,1.19938991,3471.6,3470.7,1.373681]
[1721161507576,1.49791741,3471.8,3470.9,2.88109]
[1721161507577,1.19938991,3471.8,3470.9,2.88109]
[1721161507826,1.19938991,3472.1,3471.1,2.4791]
[1721161508124,1.49791741,3472.2,3471.2,1.20439104]
[1721161508125,1.19938991,3472.2,3471.2,1.20439104]
[1721161508484,1.19938991,3472.2,3471.2,1.14678023]
[1721161508901,1.19938991,3472.1,3471.2,1.14678023]
[1721161509223,2.4313,3472.7,3471.2,1.14678023]
[1721161509224,1.19938991,3472.2,3471.2,1.14678023]
[1721161509523,1.19938991,3472.2,3471.3,0.65067502]
[1721161509694,1.19938991,3472.2,3471.4,0.55]
[1721161510923,1.19938991,3472.3,3471.4,0.55]
[1721161511120,1.19938991,3472.2,3471.4,0.55]
[1721161512416,1.19938991,3472.2,3471.5,2.3966]
[1721161512619,1.19938991,3472.3,3471.6,0.9097275]
[1721161512824,1.19938991,3472.3,3471.6,0.55]
[1721161513843,1.19938991,3472.1,3471.6,0.55]
[1721161514492,1.19938991,3471.9,3471.6,0.55]
[1721161514704,1.19938991,3471.9,3471.3,0.55]
[1721161514889,0.26967954,3471.8,3471.3,0.55]
[1721161516206,1.46906945,3471.8,3471.3,0.55]
[1721161517616,1.19938991,3471.8,3471.3,0.55]
[1721161517831,1.19938991,3471.8,3470.9,9.6366]
[1721161517832,1.19938991,3471.6,3470.9,9.6366]
[1721161518024,1.19938991,3471.7,3470.9,9.6366]
[1721161518333,0.26977276,3471.6,3470.9,9.6366]
[1721161518688,1.46916267,3471.6,3470.9,9.6366]
[1721161518892,0.26977276,3471.6,3470.9,2.2666]
[1721161519140,1.46916267,3471.6,3471.0,0.55]
[1721161519489,0.26977276,3471.6,3471.0,0.55]
[1721161521961,1.19938991,3471.7,3471.0,0.55]
[1721161522160,1.19938991,3471.5,3471.0,0.55]
[1721161522448,1.19938991,3471.5,3470.6,2.2534]
[1721161522449,0.26974097,3471.4,3470.7,0.55]
[1721161523032,1.19938991,3471.4,3470.7,0.55]
[1721161525102,1.19938991,3471.5,3470.7,0.55]
[1721161526049,1.19938991,3471.4,3470.7,0.55]
[1721161526740,1.19938991,3471.5,3470.7,0.55]
[1721161526952,1.19938991,3471.4,3470.7,0.55]
[1721161527307,1.88530699,3471.5,3470.7,0.55]
[1721161528010,1.19938991,3471.4,3470.7,0.55]
[1721161529452,0.68591708,3471.5,3470.1,7.37]
[1721161529453,3.52878991,3471.1,3470.3,2.3687]
[1721161529655,3.52878991,3471.1,3470.1,7.37]
[1721161529656,5.76316,3470.4,3470.1,7.37]
[1721161529810,2.88159,3470.3,3470.0,2.3687]
[1721161531047,2.88168,3470.2,3470.0,2.3687]
[1721161531256,2.88176,3470.1,3470.0,2.3687]
[1721161531401,2.88176,3470.1,3469.5,2.3687]
[1721161532447,2.88176,3470.1,3469.6,0.55]
[1721161533417,1.752288,3470.1,3469.0,2.3687]
[1721161533618,2.88219,3469.6,3469.0,2.3687]
[1721161534833,2.88219,3469.6,3469.1,0.55]
[1721161535432,2.88207,3469.8,3469.1,0.55]
[1721161536373,2.8821,3469.7,3469.1,0.55]
[1721161537550,2.88178,3470.1,3469.2,0.05764638]
[1721161537712,2.88185,3470.0,3469.3,0.55]
[1721161537916,5.76377,3470.0,3469.1,3.87597197]
[1721161538248,2.88198,3469.9,3469.1,3.87597197]
[1721161540354,2.88185,3470.0,3469.2,0.9127412]
[1721161540512,2.88146,3470.5,3469.4,2.488]
[1721161540717,2.88164,3470.3,3469.4,2.488]
[1721161540915,2.88164,3470.3,3469.5,0.55]
[1721161541159,2.88146,3470.5,3469.5,3.43219]
[1721161541361,2.88129,3470.7,3469.7,2.88209]
[1721161541645,2.88129,3470.7,3469.8,1.49362492]
[1721161541855,1.19938991,3471.2,3470.0,2.88184]
[1721161542042,1.19938991,3471.3,3470.1,0.55]
[1721161542427,1.19938991,3471.4,3470.0,3.43183]
[1721161542757,1.19938991,3471.4,3470.1,2.88174]
[1721161543052,0.26976537,3471.3,3470.2,0.55]
[1721161546615,1.19938991,3471.4,3470.3,2.31752553]
[1721161546820,1.19938991,3471.6,3470.4,3.43145]
[1721161547020,1.19938991,3471.7,3470.4,3.43145]
[1721161547453,1.4987073,3471.8,3470.4,3.43145]
[1721161547454,1.19938991,3471.6,3470.4,3.43145]
[1721161547623,1.46919963,3471.6,3470.5,0.90404518]
[1721161547825,0.26980972,3471.6,3470.6,0.55]
[1721161548420,1.19938991,3471.7,3470.7,2.55512051]
[1721161548648,1.19938991,3471.9,3470.8,3.48878455]
[1721161549062,1.19938991,3472.0,3471.1,2.88092]
[1721161549375,1.19938991,3472.2,3471.2,3.0475]
[1721161549719,1.19938991,3472.2,3471.3,0.05760868]
[1721161550042,1.19938991,3472.5,3471.4,4.08687082]
[1721161550371,1.19938991,3472.7,3471.5,2.8445]
[1721161550662,1.19938991,3472.8,3471.5,2.8445]
[1721161550837,1.19938991,3472.8,3471.6,2.88048]
[1721161551037,1.19938991,3472.8,3471.7,0.55]
[1721161551366,0.26983598,3472.7,3471.7,0.55]
[1721161552259,1.19938991,3472.5,3471.5,2.2945]
[1721161552483,1.19938991,3472.4,3470.9,2.4768]
[1721161552765,0.56985087,3472.3,3470.9,2.4768]
[1721161552975,1.19938991,3472.1,3470.9,2.4768]
[1721161553272,2.06896966,3472.3,3471.0,0.29828153]
[1721161553273,1.19938991,3472.0,3471.0,0.29828153]
[1721161553851,4.19938991,3472.1,3471.0,0.29828153]
[1721161554049,0.62683596,3472.0,3471.0,0.29828153]
[1721161554469,0.62683596,3472.0,3471.1,0.55]
[1721161556633,3.05093596,3472.0,3471.1,0.55]
[1721161556862,1.19938991,3471.9,3471.1,0.55]
[1721161557280,1.19938991,3471.8,3471.1,0.55]
[1721161557445,0.42482831,3471.7,3471.1,0.55]
[1721161557640,2.8806,3471.5,3471.1,0.55]
[1721161559374,2.88069,3471.4,3471.1,0.55]
[1721161560301,2.88076,3471.3,3471.1,0.55]
[1721161560637,2.8806,3471.5,3471.1,0.55]
[1721161560839,2.88076,3471.3,3471.1,0.55]
[1721161561586,2.88084,3471.2,3471.1,0.55]
[1721161564181,2.88076,3471.3,3471.1,0.55]
[1721161564392,6.21177182,3471.5,3471.1,2.9947]
[1721161564707,2.88071,3471.4,3471.1,2.9947]
[1721161565481,2.88077,3471.3,3471.1,2.9947]
[1721161566862,3.33109182,3471.5,3471.1,2.9947]
[1721161567800,0.45048182,3471.5,3471.1,0.55]
[1721161567968,0.45048182,3471.5,3470.9,0.55]
[1721161567969,1.64987173,3471.5,3470.9,0.55]
[1721161568169,0.31481862,3471.4,3470.6,0.2985523]
[1721161568375,1.51420853,3471.4,3470.6,0.2985523]
[1721161568575,2.88126,3470.7,3470.6,0.2985523]
[1721161569510,1.19938991,3471.2,3470.6,0.2985523]
[1721161569511,2.88116,3470.9,3470.6,0.2985523]
[1721161569889,2.88116,3470.9,3470.7,0.55]
[1721161570510,2.88118,3470.8,3470.7,0.55]
[1721161571014,3.19553862,3471.4,3470.7,0.55]
[1721161571015,2.88108,3471.0,3470.7,0.55]
[1721161571306,1.19938991,3471.3,3470.7,0.55]
[1721161571478,1.80062321,3471.3,3470.7,0.55]
[1721161572877,0.31481862,3471.4,3470.7,0.55]
[1721161573082,1.19938991,3471.6,3470.8,2.4391]
[1721161573391,1.19938991,3471.7,3470.9,0.55]
[1721161573789,1.19938991,3471.9,3471.0,2.4391]
[1721161574029,1.19938991,3471.9,3471.1,0.55]
[1721161575278,1.19938991,3471.8,3471.1,0.55]
[1721161575514,1.19938991,3471.9,3471.1,0.55]
[1721161577724,4.19938991,3472.0,3471.1,0.55]
[1721161578086,1.19938991,3471.9,3471.1,0.55]
[1721161578802,1.19938991,3471.8,3471.1,0.55]
[1721161579303,4.4979437,3472.0,3471.1,0.55]
[1721161579304,1.19938991,3471.9,3471.1,0.55]
[1721161579910,1.19938991,3471.9,3471.2,2.3747]
[1721161580117,1.19938991,3472.0,3471.3,0.55]
[1721161580416,1.19938991,3471.9,3471.3,0.55]
[1721161580599,1.49934226,3472.1,3471.3,0.55]
[1721161580600,1.19938991,3472.0,3471.3,0.55]
[1721161581304,1.19938991,3471.9,3471.3,0.55]
[1721161581607,1.19938991,3471.8,3471.3,0.55]
[1721161581796,1.19938991,3471.7,3471.3,0.55]
[1721161582243,1.19938991,3471.8,3471.3,0.55]
[1721161582523,1.19938991,3471.7,3471.3,0.55]
[1721161583733,1.19938991,3471.6,3471.3,0.55]
[1721161584611,1.19938991,3471.7,3471.3,0.55]
[1721161584911,1.19938991,3471.6,3471.3,0.55]
[1721161586195,1.19938991,3471.7,3471.3,0.55]
[1721161586400,1.19938991,3471.6,3471.4,0.29247]
[1721161586629,1.19938991,3471.6,3471.5,0.55]
[1721161586793,1.19938991,3471.6,3471.3,0.55]
[1721161587326,1.19938991,3471.5,3471.3,0.55]
[1721161587689,1.19938991,3471.6,3471.3,0.55]
[1721161587897,1.19938991,3471.6,3471.3,1.130558]
[1721161589418,1.19938991,3471.6,3471.3,0.55]
[1721161590710,1.19938991,3471.7,3471.3,0.55]
[1721161591117,1.19938991,3471.6,3471.3,0.55]
[1721161592037,1.19938991,3471.7,3471.3,0.55]
[1721161593606,5.28823342,3472.1,3471.2,2.3747]
[1721161593607,1.19938991,3471.5,3471.2,2.3747]
[1721161593815,1.19938991,3471.4,3471.2,2.3747]
[1721161594402,1.19938991,3471.4,3470.9,2.68797526]
[1721161594598,1.19938991,3471.3,3470.9,2.68797526]
[1721161594804,1.19938991,3471.3,3471.0,0.55]
[1721161595103,1.19938991,3471.4,3471.0,0.55]
[1721161595305,1.19938991,3471.4,3470.9,2.68797526]
[1721161595511,1.46996165,3471.3,3470.9,2.68797526]
[1721161595726,1.19938991,3471.3,3470.9,2.68797526]
[1721161596733,1.50669128,3471.4,3470.9,2.68797526]
[1721161596734,1.19938991,3471.2,3471.0,0.55]
[1721161597043,1.19938991,3471.3,3471.0,0.55]
[1721161597198,1.19938991,3471.2,3471.0,0.55]
[1721161597406,1.19938991,3471.1,3471.0,0.55]
[1721161598143,0.27060812,3471.1,3470.9,0.29867526]
[1721161598446,1.50669128,3471.0,3470.9,0.29867526]
[1721161598629,1.80802954,3471.2,3470.9,0.29867526]
[1721161598834,0.18080295,3471.1,3470.9,0.29867526]
[1721161599157,1.50700535,3471.0,3470.9,0.29867526]
[1721161599315,1.50700535,3471.0,3470.9,0.84867526]
[1721161602249,3.0,3471.9,3470.9,0.84867526]
[1721161602436,1.50705411,3471.0,3470.9,0.84867526]
[1721161602629,1.50708454,3471.0,3470.9,0.84867526]
[1721161603863,0.3315586,3471.0,3470.9,0.84867526]
[1721161604360,2.14006005,3471.0,3470.9,0.84867526]
[1721161604659,0.3315586,3471.0,3470.9,0.84867526]
[1721161605334,3.0,3471.3,3470.9,0.84867526]
[1721161605540,1.80839428,3471.3,3470.9,0.84867526]
[1721161605740,1.50698815,3471.0,3470.9,0.84867526]
[1721161605971,1.50697113,3471.0,3470.9,0.84867526]
[1721161606371,1.80839428,3471.3,3470.9,0.84867526]
[1721161606562,1.50694683,3471.0,3470.9,0.84867526]
[1721161608555,3.93619876,3471.3,3470.9,0.84867526]
[1721161608770,1.50685982,3471.1,3470.9,0.84867526]
[1721161608980,1.50685982,3471.1,3471.0,0.55]
[1721161609345,3.0,3471.3,3471.0,0.55]
[1721161609543,1.80823178,3471.3,3471.0,0.55]
[1721161609741,1.50681289,3471.1,3471.0,0.55]
[1721161610483,3.0,3471.3,3471.0,0.55]
[1721161610691,0.48082318,3471.2,3471.0,0.55]
[1721161610848,1.80823178,3471.3,3471.0,0.55]
[1721161611769,3.0,3471.6,3471.0,0.55]
[1721161611955,1.50608409,3471.1,3471.0,0.55]
[1721161612361,4.80729339,3471.3,3471.0,0.55]
[1721161612670,1.50598426,3471.1,3471.0,0.55]
[1721161613557,3.0,3471.3,3471.0,0.55]
[1721161613761,0.48072934,3471.3,3471.0,0.55]
[1721161615159,1.5053229,3471.1,3471.0,0.55]
[1721161615478,3.48072934,3471.3,3471.0,0.55]
[1721161615672,1.80654116,3471.4,3471.0,0.55]
[1721161616286,1.50541148,3471.1,3471.0,0.55]
[1721161616486,3.0,3471.3,3471.0,0.55]
[1721161616780,1.80654116,3471.4,3471.0,0.55]
[1721161616991,1.50524175,3471.1,3471.0,0.55]
[1721161617894,3.0,3471.3,3471.0,0.55]
[1721161618359,1.50507958,3471.1,3471.0,0.55]
[1721161618560,1.50508274,3471.1,3471.0,0.55]
[1721161620084,3.0,3471.3,3471.0,0.55]
[1721161620397,1.8061743,3471.4,3471.0,0.55]
[1721161620590,2.88076,3471.3,3471.0,0.55]
[1721161620789,1.50534184,3471.1,3471.0,0.55]
[1721161620991,2.88093,3471.1,3471.0,0.55]
[1721161622300,2.88101,3471.0,3470.9,0.29867526]
[1721161622506,5.76202,3471.0,3470.9,0.29867526]
[1721161622699,5.76202,3471.0,3470.9,0.84867526]
[1721161623179,5.76202,3471.0,3470.9,0.29867526]
[1721161623506,6.41595143,3471.0,3470.9,0.29867526]
[1721161626315,5.76202,3471.0,3470.9,0.29867526]
[1721161627503,10.44859188,3471.0,3470.9,0.29867526]
[1721161627809,5.76318,3470.3,3470.2,7.37]
[1721161628132,2.8818,3470.1,3469.9,2.4156]
[1721161628293,1.20351333,3470.0,3469.9,2.4156]
[1721161628490,1.20351333,3470.0,3469.9,2.71667606]
[1721161629149,4.08531333,3470.1,3469.9,2.71667606]
[1721161629479,1.20351333,3470.0,3469.9,2.71667606]
[1721161629981,1.20351333,3470.0,3469.9,3.26667606]
[1721161630298,6.96715333,3470.1,3469.9,3.26667606]
[1721161630509,4.08531333,3470.1,3470.0,0.55]
[1721161632427,2.88184,3470.0,3469.9,0.30107606]
[1721161632729,2.88212,3469.7,3469.5,7.37]
[1721161632930,2.88212,3469.7,3469.3,2.4156]
[1721161632931,2.88225,3469.6,3469.3,2.4156]
[1721161634433,2.88225,3469.6,3469.4,0.55]
[1721161634730,2.88205,3469.8,3469.4,0.55]
[1721161634731,5.76413,3469.8,3469.4,0.55]
[1721161634941,2.88205,3469.8,3469.4,0.55]
[1721161635816,1.20186916,3470.0,3469.5,2.76968956]
[1721161636128,2.88176,3470.1,3469.6,2.9656]
[1721161639420,4.08362916,3470.1,3469.6,2.9656]
[1721161639933,2.88176,3470.1,3469.6,2.9656]
[1721161641055,2.88172,3470.2,3469.6,2.9656]
[1721161641215,2.88172,3470.2,3469.7,0.54086]
[1721161641418,2.88172,3470.2,3469.8,0.55]
[1721161641622,4.08358916,3470.2,3469.8,0.55]
[1721161642023,2.88172,3470.2,3469.8,0.55]
[1721161642333,4.08345916,3470.3,3469.8,0.55]
[1721161642636,4.08345916,3470.3,3469.9,2.3644]
[1721161642851,4.08345916,3470.3,3470.0,0.55]
[1721161642852,2.88159,3470.3,3470.0,0.55]